bitfinex/quotes_SOLUSD_20230104
["timestamp","ask_amount","ask_price","bid_price","bid_amount"]
[1672843309687,89.72213,13.429,13.42,31.78]
[1672843309901,13.82213,13.428,13.42,31.78]
[1672843310213,75.91,13.427,13.42,31.78]
[1672843310426,13.82213,13.426,13.42,31.78]
[1672843311466,34.25642577,13.426,13.42,31.78]
[1672843311776,55.92,13.425,13.42,31.78]
[1672843311994,13.82213,13.424,13.42,31.78]
[1672843315262,55.92,13.423,13.42,31.78]
[1672843315579,69.74213,13.423,13.42,31.78]
[1672843315792,13.82213,13.423,13.42,31.78]
[1672843318650,13.82213,13.423,13.42,16.78]
[1672843320424,13.82213,13.423,13.395,150.96538255]
[1672843320626,126.58,13.42,13.396,190.55203307]
[1672843320837,94.61973,13.419,13.397,2.42975168]
[1672843321041,33.82213,13.418,13.397,2.42957031]
[1672843321366,93.42553,13.417,13.397,2.42957031]
[1672843321574,93.42553,13.417,13.397,24.21075391]
[1672843321786,24.8576,13.416,13.397,24.21075391]
[1672843322829,69.77213,13.417,13.397,24.21075391]
[1672843323044,13.82213,13.417,13.397,24.21075391]
[1672843323583,13.82213,13.417,13.397,2.42957031]
[1672843323789,55.95,13.416,13.397,2.42957031]
[1672843323983,59.65653,13.415,13.397,2.42957031]
[1672843324424,55.96,13.414,13.397,2.42957031]
[1672843324735,55.96,13.414,13.397,24.21075391]
[1672843324922,13.82213,13.415,13.397,24.21075391]
[1672843325254,13.82213,13.415,13.397,2.42957031]
[1672843325453,101.7944,13.414,13.397,2.42957031]
[1672843325876,43.3344,13.414,13.397,2.42957031]
[1672843326096,99.2944,13.414,13.397,24.21075391]
[1672843326315,43.3344,13.414,13.397,24.21075391]
[1672843326711,43.3344,13.414,13.397,2.42957031]
[1672843327574,99.2944,13.414,13.397,2.42957031]
[1672843328098,13.82213,13.413,13.397,2.42957031]
[1672843328289,55.97,13.412,13.397,2.42957031]
[1672843330301,69.79213,13.412,13.397,2.42957031]
[1672843330546,13.82213,13.412,13.397,2.42957031]
[1672843331993,139.4576,13.417,13.397,2.42957031]
[1672843331994,55.95,13.417,13.398,21.7811836]
[1672843332310,126.5273,13.428,13.399,45.01518897]
[1672843332521,13.82213,13.427,13.4,2.42920766]
[1672843332746,55.91,13.426,13.4,24.21020998]
[1672843332976,13.82213,13.425,13.401,21.7811836]
[1672843333157,13.82213,13.425,13.402,22.42884512]
[1672843333158,55.92,13.424,13.402,22.42884512]
[1672843333483,13.82213,13.423,13.403,2.42866389]
[1672843333689,55.93,13.422,13.403,131.0568]
[1672843333882,69.75213,13.422,13.403,152.8379836]
[1672843334095,69.75213,13.422,13.404,20.0]
[1672843335982,69.75213,13.422,13.404,41.7811836]
[1672843340199,69.75213,13.422,13.404,20.0]
[1672843343677,55.93,13.422,13.404,92.42749534]
[1672843343886,243.016,13.438,13.404,92.42749534]
[1672843344098,13.82213,13.437,13.405,24.3833]
[1672843344406,25.14,13.43,13.406,41.7811836]
[1672843344629,69.72213,13.429,13.407,71.4355]
[1672843344811,69.72213,13.429,13.408,20.0]
[1672843345232,69.72213,13.429,13.409,111.6331]
[1672843345561,13.82213,13.428,13.41,20.0]
[1672843345757,55.91,13.427,13.41,23.0242]
[1672843345971,33.82213,13.426,13.41,23.0242]
[1672843346192,69.74213,13.425,13.41,23.0242]
[1672843346407,13.82213,13.424,13.41,23.0242]
[1672843346625,55.92,13.423,13.41,23.0242]
[1672843350287,13.82213,13.422,13.41,23.0242]
[1672843350498,55.93,13.421,13.41,23.0242]
[1672843350708,69.75213,13.421,13.41,23.0242]
[1672843351443,13.82213,13.421,13.41,23.0242]
[1672843352394,55.94,13.42,13.41,23.0242]
[1672843352586,69.76213,13.42,13.41,23.0242]
[1672843352801,13.82213,13.42,13.41,23.0242]
[1672843355763,13.82213,13.42,13.411,21.7811836]
[1672843355956,101.9564,13.433,13.411,75.71611383]
[1672843356167,123.79243,13.432,13.41,23.0242]
[1672843356373,69.71213,13.431,13.41,23.0242]
[1672843356597,39.13213,13.43,13.41,23.0242]
[1672843356795,92.95293,13.429,13.41,23.0242]
[1672843357006,22.8456,13.428,13.41,23.0242]
[1672843357330,75.91,13.427,13.41,23.0242]
[1672843357655,13.82213,13.426,13.41,23.0242]
[1672843357963,55.92,13.425,13.41,23.0242]
[1672843361411,80.3337,13.426,13.41,23.0242]
[1672843361635,24.4237,13.426,13.41,44.8053836]
[1672843362047,55.92,13.425,13.41,44.8053836]
[1672843362801,55.89,13.431,13.411,20.0]
[1672843363305,25.14,13.43,13.41,23.0242]
[1672843363516,69.72213,13.429,13.41,23.0242]
[1672843363728,61.24673,13.428,13.41,23.0242]
[1672843363937,69.73213,13.427,13.41,23.0242]
[1672843364152,20.0,13.426,13.41,23.0242]
[1672843364377,69.73213,13.427,13.411,20.0]
[1672843364585,55.89,13.431,13.411,20.0]
[1672843364898,55.89,13.431,13.412,24.7943]
[1672843365108,55.89,13.431,13.413,20.0]
[1672843365307,55.89,13.431,13.413,65.0754836]
[1672843365528,55.89,13.431,13.413,43.2943]
[1672843365735,13.82213,13.43,13.413,43.2943]
[1672843366065,75.9,13.429,13.413,23.2943]
[1672843366265,13.82213,13.428,13.413,23.2943]
[1672843366483,75.91,13.427,13.412,24.7943]
[1672843366797,13.82213,13.426,13.412,24.7943]
[1672843367001,55.92,13.425,13.412,24.7943]
[1672843367213,13.82213,13.424,13.412,24.7943]
[1672843367412,13.82213,13.424,13.397,123.59908678]
[1672843367413,25.31,13.42,13.398,48.2194]
[1672843367629,25.31,13.42,13.406,2.42812036]
[1672843367630,98.696,13.419,13.406,2.42812036]
[1672843367841,13.82213,13.418,13.406,2.42812036]
[1672843368043,75.95,13.417,13.398,161.8029]
[1672843368262,13.82213,13.416,13.398,161.8029]
[1672843368469,55.96,13.415,13.399,21.7811836]
[1672843368680,55.96,13.415,13.4,2.42920766]
[1672843369098,55.96,13.415,13.4,24.21020998]
[1672843369421,69.78213,13.415,13.4,24.21020998]
[1672843370248,13.82213,13.414,13.4,2.42902638]
[1672843370459,55.97,13.413,13.4,2.42902638]
[1672843370673,55.97,13.413,13.399,2.42902638]
[1672843370992,13.82213,13.412,13.399,2.42902638]
[1672843371186,55.97,13.411,13.399,2.42902638]
[1672843371399,13.82213,13.41,13.399,2.42902638]
[1672843371617,55.98,13.409,13.399,2.42902638]
[1672843371944,13.82213,13.41,13.399,2.42902638]
[1672843373725,13.82213,13.41,13.399,24.21020998]
[1672843374044,13.82213,13.41,13.399,2.42902638]
[1672843375297,55.98,13.409,13.399,2.42902638]
[1672843375521,69.80213,13.409,13.399,2.42902638]
[1672843377824,13.82213,13.409,13.399,2.42902638]
[1672843378236,13.82213,13.409,13.4,21.7811836]
[1672843378465,55.97,13.413,13.401,2.42902638]
[1672843378654,55.97,13.413,13.399,2.42884512]
[1672843378859,13.82213,13.412,13.399,2.42884512]
[1672843379393,13.82213,13.412,13.4,21.7811836]
[1672843379597,13.82213,13.412,13.401,2.42902638]
[1672843379919,13.82213,13.412,13.401,2.42884512]
[1672843380130,13.82213,13.412,13.4,21.7811836]
[1672843380764,13.82213,13.412,13.401,2.42902638]
[1672843380961,13.82213,13.412,13.399,2.42884512]
[1672843382015,55.97,13.411,13.399,2.42884512]
[1672843383807,13.82213,13.41,13.399,2.42884512]
[1672843384132,55.98,13.409,13.399,2.42884512]
[1672843384447,13.82213,13.408,13.399,2.42884512]
[1672843384647,55.99,13.407,13.399,2.42884512]
[1672843385797,33.82213,13.406,13.399,2.42884512]
[1672843386129,69.82213,13.405,13.398,2.42920766]
[1672843386339,69.82213,13.405,13.385,127.57880828]
[1672843386548,157.3707,13.404,13.388,122.04967573]
[1672843386786,56.01,13.403,13.388,122.04967573]
[1672843386970,56.01,13.403,13.39,124.47577175]
[1672843387177,69.83213,13.403,13.392,124.40948803]
[1672843387370,13.82213,13.402,13.393,2.43047741]
[1672843387582,56.02,13.401,13.393,130.49671705]
[1672843387790,13.82213,13.4,13.393,130.49671705]
[1672843388023,56.02,13.399,13.394,2.43029594]
[1672843388549,56.02,13.399,13.394,2.43011449]
[1672843389371,13.82213,13.4,13.394,2.43011449]
[1672843389798,56.02,13.399,13.394,2.43011449]
[1672843390021,69.84213,13.399,13.394,2.43011449]
[1672843390333,13.82213,13.398,13.394,2.43011449]
[1672843391068,13.82213,13.398,13.394,131.39259038]
[1672843391997,13.82213,13.398,13.394,2.43011449]
[1672843392208,13.82213,13.398,13.395,126.11118255]
[1672843392412,13.82213,13.398,13.387,129.71008435]
[1672843392642,13.82213,13.398,13.389,121.26219369]
[1672843393169,13.82213,13.398,13.391,128.09358312]
[1672843393483,13.82213,13.398,13.386,24.0491]
[1672843393700,13.82213,13.398,13.387,20.0]
[1672843394098,13.82213,13.398,13.386,24.0491]
[1672843394313,76.03,13.397,13.387,2.43156682]
[1672843394641,13.82213,13.396,13.387,2.43156682]
[1672843394839,13.82213,13.396,13.378,159.9475]
[1672843394840,56.04,13.395,13.378,159.9475]
[1672843395040,13.82213,13.394,13.378,159.9475]
[1672843395251,56.05,13.393,13.379,2.43302089]
[1672843395463,13.82213,13.392,13.379,2.43302089]
[1672843395681,13.82213,13.392,13.379,2.43283904]
[1672843396621,56.06,13.391,13.379,2.43283904]
[1672843396840,13.82213,13.39,13.379,2.43283904]
[1672843397054,56.07,13.389,13.379,2.43283904]
[1672843397245,13.82213,13.388,13.379,2.43283904]
[1672843397456,76.07,13.387,13.373,2.43283904]
[1672843397665,76.07,13.387,13.37,2.43393057]
[1672843397666,13.82213,13.386,13.37,2.43393057]
[1672843397996,56.08,13.385,13.37,2.43393057]
[1672843398192,69.90213,13.385,13.37,2.43393057]
[1672843398404,13.82213,13.384,13.37,2.43393057]
[1672843398611,56.09,13.383,13.37,2.43393057]
[1672843399139,13.82213,13.384,13.37,2.43393057]
[1672843399350,56.09,13.383,13.37,2.43393057]
[1672843399789,13.82213,13.382,13.37,2.43393057]
[1672843399995,56.1,13.381,13.37,2.43393057]
[1672843400219,13.82213,13.38,13.37,2.43393057]
[1672843401346,56.08,13.385,13.37,2.43393057]
[1672843401560,13.82213,13.385,13.37,2.43393057]
[1672843401889,146.51,13.41,13.371,21.7811836]
[1672843401890,56.02,13.401,13.371,21.7811836]
[1672843402093,33.82213,13.4,13.372,92.09969463]
[1672843402311,69.84213,13.399,13.372,92.09969463]
[1672843402518,33.82213,13.398,13.373,24.21529618]
[1672843402834,69.85213,13.397,13.374,24.21511417]
[1672843403029,33.82213,13.396,13.375,45.19374858]
[1672843403239,69.86213,13.395,13.376,2.43356662]
[1672843403449,13.82213,13.394,13.377,136.5652]
[1672843403667,56.05,13.393,13.378,25.19320277]
[1672843403880,90.30642577,13.393,13.379,2.43302089]
[1672843404095,90.30642577,13.393,13.379,2.43283904]
[1672843404096,34.25642577,13.392,13.379,2.43283904]
[1672843404304,69.88213,13.391,13.379,2.43283904]
[1672843404520,13.82213,13.39,13.379,2.43283904]
[1672843404714,56.07,13.389,13.379,2.43283904]
[1672843404925,13.82213,13.388,13.379,2.43283904]
[1672843411553,56.05,13.393,13.379,2.43283904]
[1672843412181,13.82213,13.392,13.379,2.43283904]
[1672843412385,56.06,13.391,13.379,2.43283904]
[1672843412600,13.82213,13.39,13.379,2.43283904]
[1672843412912,56.07,13.389,13.379,2.43283904]
[1672843414177,13.82213,13.388,13.379,2.43283904]
[1672843414387,56.07,13.387,13.379,2.43283904]
[1672843414596,33.82213,13.386,13.379,2.43283904]
[1672843414815,69.90213,13.385,13.373,2.43283904]
[1672843415028,13.82213,13.384,13.373,2.43283904]
[1672843415344,13.82213,13.384,13.37,109.9641]
[1672843415345,56.09,13.383,13.371,2.43393057]
[1672843415557,69.91213,13.383,13.371,2.43393057]
[1672843415740,13.82213,13.383,13.371,2.43393057]
[1672843415951,13.82213,13.382,13.371,2.43393057]
[1672843416161,56.1,13.381,13.371,2.43393057]
[1672843416493,13.82213,13.38,13.371,2.43393057]
[1672843416903,56.11,13.379,13.371,2.43393057]
[1672843417132,13.82213,13.378,13.371,2.43393057]
[1672843421319,105.5176,13.384,13.371,2.43393057]
[1672843421542,13.82213,13.383,13.371,2.43393057]
[1672843421738,56.09,13.382,13.365,122.15225213]
[1672843421954,33.82213,13.381,13.364,332.06074483]
[1672843422165,182.72083,13.38,13.364,332.06074483]
[1672843422371,112.7987,13.38,13.365,20.0]
[1672843422792,112.7987,13.38,13.365,108.5393]
[1672843424599,112.7987,13.38,13.368,20.19481941]
[1672843425012,56.09,13.384,13.368,20.19481941]
[1672843425227,114.4315,13.392,13.369,20.0]
[1672843425441,56.06,13.391,13.369,91.96584605]
[1672843425753,56.06,13.391,13.37,21.7811836]
[1672843425950,56.06,13.391,13.371,22.02754605]
[1672843426152,56.06,13.391,13.372,23.4823]
[1672843426361,56.06,13.391,13.373,22.02754605]
[1672843426693,56.06,13.391,13.373,20.0]
[1672843427120,56.06,13.391,13.374,110.145]
[1672843427311,56.06,13.391,13.375,20.0]
[1672843427531,56.06,13.391,13.376,47.1249]
[1672843427742,20.43429577,13.39,13.369,22.7771]
[1672843427954,56.07,13.389,13.369,22.7771]
[1672843428149,43.2954,13.388,13.369,22.7771]
[1672843428360,56.07,13.387,13.369,22.7771]
[1672843428592,130.1483,13.386,13.369,22.7771]
[1672843428913,56.08,13.385,13.369,22.7771]
[1672843429521,76.51429577,13.385,13.369,22.7771]
[1672843429752,56.08,13.385,13.369,22.7771]
[1672843430150,108.40476765,13.385,13.369,22.7771]
[1672843430578,34.25642577,13.384,13.369,22.7771]
[1672843430795,34.25642577,13.384,13.364,209.66633002]
[1672843430796,76.09,13.383,13.364,209.66633002]
[1672843430996,162.67119342,13.383,13.364,209.66633002]
[1672843431329,86.58119342,13.382,13.364,209.66633002]
[1672843431534,76.1,13.381,13.364,209.66633002]
[1672843431742,162.68119342,13.381,13.364,209.66633002]
[1672843431956,86.58119342,13.38,13.364,209.66633002]
[1672843432171,76.11,13.379,13.364,209.66633002]
[1672843432385,128.43476765,13.379,13.364,209.66633002]
[1672843432914,52.32476765,13.378,13.364,209.66633002]
[1672843433106,76.12,13.377,13.364,209.66633002]
[1672843433747,128.44476765,13.377,13.364,209.66633002]
[1672843435939,76.12,13.377,13.364,209.66633002]
[1672843436151,20.0,13.377,13.364,209.66633002]
[1672843436362,56.12,13.376,13.364,209.66633002]
[1672843436591,20.0,13.375,13.364,209.66633002]
[1672843436998,56.13,13.374,13.364,209.66633002]
[1672843437219,20.0,13.375,13.364,209.66633002]
[1672843437537,20.0,13.377,13.364,209.66633002]
[1672843437845,56.12,13.376,13.364,209.66633002]
[1672843438063,20.0,13.375,13.364,209.66633002]
[1672843438461,56.11,13.378,13.364,209.66633002]
[1672843438677,22.8996,13.381,13.368,25.312]
[1672843438880,22.8996,13.381,13.368,20.0]
[1672843439095,22.8996,13.381,13.367,20.0]
[1672843439417,22.8996,13.381,13.368,5.311]
[1672843441318,22.8996,13.381,13.367,20.0]
[1672843442144,22.8996,13.381,13.366,20.0]
[1672843444155,56.1,13.38,13.366,20.0]
[1672843444364,56.1,13.38,13.365,47.0052]
[1672843444578,92.75906342,13.379,13.364,209.66633002]
[1672843444785,56.11,13.378,13.364,209.66633002]
[1672843444995,128.86906342,13.378,13.364,209.66633002]
[1672843445195,92.75906342,13.377,13.364,209.66633002]
[1672843445405,56.12,13.376,13.364,209.66633002]
[1672843445624,20.0,13.375,13.364,209.66633002]
[1672843445837,56.13,13.374,13.364,209.66633002]
[1672843446250,20.0,13.375,13.364,209.66633002]
[1672843446459,20.0,13.379,13.364,209.66633002]
[1672843446671,56.11,13.378,13.364,209.66633002]
[1672843446888,20.0,13.377,13.364,209.66633002]
[1672843447096,56.12,13.376,13.364,209.66633002]
[1672843447308,20.0,13.375,13.364,209.66633002]
[1672843448033,76.11,13.378,13.364,209.66633002]
[1672843449607,20.43429577,13.377,13.364,209.66633002]
[1672843449924,56.12,13.376,13.364,209.66633002]
[1672843450133,111.9152,13.395,13.365,20.0]
[1672843450361,71.747,13.4,13.365,322.47235743]
[1672843450585,13.82213,13.395,13.365,251.81591938]
[1672843450762,125.7931,13.394,13.365,48.25831938]
[1672843450969,13.82213,13.393,13.364,209.66633002]
[1672843451188,56.05,13.392,13.364,209.66633002]
[1672843451406,125.73733,13.391,13.364,209.66633002]
[1672843451615,89.88213,13.39,13.364,209.66633002]
[1672843451808,13.82213,13.389,13.364,209.66633002]
[1672843452020,76.07,13.388,13.364,209.66633002]
[1672843452255,13.82213,13.387,13.364,209.66633002]
[1672843452446,56.08,13.386,13.364,209.66633002]
[1672843452658,33.82213,13.385,13.364,209.66633002]
[1672843452878,56.09,13.384,13.364,209.66633002]
[1672843453091,20.0,13.383,13.364,209.66633002]
[1672843453402,56.1,13.382,13.364,209.66633002]
[1672843453618,20.0,13.381,13.364,209.66633002]
[1672843453936,56.1,13.38,13.364,209.66633002]
[1672843454245,20.0,13.379,13.364,209.66633002]
[1672843454455,56.11,13.378,13.364,209.66633002]
[1672843454674,20.0,13.377,13.364,209.66633002]
[1672843454855,56.12,13.376,13.364,209.66633002]
[1672843455077,20.0,13.375,13.364,209.66633002]
[1672843455602,56.13,13.374,13.364,209.66633002]
[1672843456132,20.0,13.373,13.364,131.04145626]
[1672843456326,56.14,13.372,13.364,131.04145626]
[1672843456538,20.0,13.371,13.364,131.04145626]
[1672843456762,56.15,13.37,13.364,131.04145626]
[1672843456976,76.58429577,13.37,13.364,113.27205626]
[1672843457198,20.0,13.369,13.364,95.52155626]
[1672843457392,56.15,13.368,13.364,86.65575626]
[1672843457603,20.0,13.367,13.364,82.58925626]
[1672843457809,56.16,13.366,13.364,42.76695626]
[1672843458144,20.0,13.365,13.364,42.76695626]
[1672843459808,76.17,13.365,13.364,42.76695626]
[1672843460334,20.0,13.365,13.364,42.76695626]
[1672843460764,76.17,13.365,13.364,42.76695626]
[1672843461292,20.0,13.365,13.364,42.76695626]
[1672843461930,40.43429577,13.365,13.364,42.76695626]
[1672843462126,20.0,13.365,13.364,42.76695626]
[1672843464759,23.3975,13.384,13.364,42.76695626]
[1672843464760,133.13569311,13.393,13.364,42.76695626]
[1672843464958,301.53476013,13.402,13.364,42.76695626]
[1672843464959,112.6997,13.389,13.365,202.2367]
[1672843465167,23.7431,13.392,13.365,202.2367]
[1672843465393,168.7597,13.391,13.366,132.96581091]
[1672843465708,189.19399577,13.391,13.367,78.91304947]
[1672843465916,20.43429577,13.39,13.367,152.96581091]
[1672843466230,56.07,13.389,13.368,132.96581091]
[1672843466642,56.07,13.389,13.369,80.69423307]
[1672843466967,56.07,13.389,13.37,21.7811836]
[1672843467179,20.43429577,13.388,13.37,80.69423307]
[1672843467390,56.07,13.387,13.367,20.0]
[1672843467591,56.07,13.387,13.366,20.0]
[1672843467915,56.07,13.387,13.367,80.69423307]
[1672843468124,56.07,13.387,13.368,20.0]
[1672843468541,56.06,13.39,13.369,21.7811836]
[1672843469073,20.0,13.389,13.369,21.7811836]
[1672843469285,56.07,13.388,13.369,21.7811836]
[1672843469483,20.0,13.387,13.369,21.7811836]
[1672843469696,56.08,13.386,13.369,21.7811836]
[1672843469910,20.0,13.385,13.369,21.7811836]
[1672843470113,20.0,13.387,13.369,21.7811836]
[1672843470526,20.0,13.389,13.369,21.7811836]
[1672843470737,20.43429577,13.387,13.368,20.0]
[1672843470953,20.0,13.386,13.368,20.0]
[1672843471385,40.43429577,13.386,13.368,20.0]
[1672843471602,40.43429577,13.386,13.365,182.2367]
[1672843471603,40.43429577,13.386,13.366,20.0]
[1672843472752,56.08,13.385,13.353,23.6111]
[1672843472970,20.0,13.384,13.354,182.5507]
[1672843473172,56.09,13.383,13.354,182.5507]
[1672843473370,20.0,13.382,13.354,182.5507]
[1672843473582,56.1,13.381,13.354,182.5507]
[1672843473792,20.0,13.38,13.354,182.5507]
[1672843474110,56.11,13.379,13.354,182.5507]
[1672843474320,20.0,13.378,13.354,182.5507]
[1672843474960,56.12,13.377,13.354,182.5507]
[1672843475174,20.0,13.376,13.354,182.5507]
[1672843475367,40.43429577,13.376,13.354,182.5507]
[1672843475567,56.12,13.375,13.354,182.5507]
[1672843475783,76.55429577,13.375,13.354,182.5507]
[1672843476093,56.12,13.375,13.354,182.5507]
[1672843476645,76.55429577,13.375,13.354,182.5507]
[1672843477042,76.55429577,13.375,13.354,150.31765626]
[1672843477258,76.55429577,13.375,13.355,20.0]
[1672843477689,20.0,13.374,13.354,111.2579]
[1672843478007,76.56429577,13.373,13.354,111.2579]
[1672843478412,20.43429577,13.372,13.354,111.2579]
[1672843478741,76.14,13.371,13.354,111.2579]
[1672843479148,56.14,13.371,13.354,111.2579]
[1672843479368,56.12,13.376,13.354,111.2579]
[1672843479688,20.0,13.375,13.355,41.7811836]
[1672843479902,56.13,13.374,13.355,20.0]
[1672843480830,76.56429577,13.374,13.355,20.0]
[1672843481244,76.56429577,13.374,13.354,111.2579]
[1672843481881,20.0,13.373,13.354,111.2579]
[1672843482213,76.57429577,13.372,13.354,111.2579]
[1672843482426,20.0,13.371,13.354,111.2579]
[1672843482627,56.15,13.37,13.354,111.2579]
[1672843482839,20.0,13.369,13.354,111.2579]
[1672843483050,56.15,13.368,13.354,111.2579]
[1672843483261,20.0,13.367,13.354,111.2579]
[1672843483465,56.16,13.366,13.354,111.2579]
[1672843483666,20.0,13.365,13.336,92.9677]
[1672843483877,20.0,13.365,13.337,112.5188]
[1672843484105,20.0,13.366,13.337,273.34204785]
[1672843484310,20.0,13.366,13.338,118.16392423]
[1672843484733,20.0,13.366,13.339,118.16392423]
[1672843485140,20.0,13.366,13.34,129.75275172]
[1672843485352,20.0,13.366,13.34,180.82324785]
[1672843485579,20.0,13.366,13.341,119.08877973]
[1672843485771,20.0,13.366,13.342,20.0]
[1672843485983,76.16,13.367,13.343,23.2768]
[1672843486191,76.16,13.367,13.344,20.0]
[1672843486416,96.59429577,13.367,13.344,41.7811836]
[1672843486628,20.0,13.367,13.344,41.7811836]
[1672843486840,20.42213711,13.37,13.345,140.6780836]
[1672843487035,91.4668,13.369,13.346,66.6135]
[1672843487244,147.6168,13.369,13.346,88.3946836]
[1672843487457,147.6168,13.369,13.347,21.7811836]
[1672843487771,168.03893711,13.369,13.348,20.0]
[1672843487985,91.4668,13.369,13.348,20.0]
[1672843488189,91.4668,13.369,13.349,21.7811836]
[1672843488615,56.14,13.372,13.349,21.7811836]
[1672843488937,56.14,13.372,13.35,20.0]
[1672843489154,56.12,13.376,13.35,20.0]
[1672843489340,56.12,13.376,13.351,68.7733836]
[1672843489554,56.12,13.376,13.352,20.0]
[1672843489759,76.54213711,13.376,13.352,41.7811836]
[1672843489980,76.54213711,13.376,13.353,139.1406836]
[1672843490187,20.0,13.375,13.354,20.0]
[1672843490397,56.13,13.374,13.354,20.0]
[1672843491037,76.55213711,13.374,13.354,20.0]
[1672843491673,76.55213711,13.374,13.353,117.3595]
[1672843491906,20.0,13.373,13.353,117.3595]
[1672843492101,56.14,13.372,13.353,117.3595]
[1672843492627,56.12,13.375,13.354,20.0]
[1672843493361,126.0065,13.376,13.354,71.07049613]
[1672843493551,20.42213711,13.374,13.354,71.07049613]
[1672843493973,126.0065,13.376,13.354,71.07049613]
[1672843494305,146.42863711,13.376,13.354,71.07049613]
[1672843495346,146.42863711,13.376,13.355,22.5005]
[1672843495561,146.42863711,13.376,13.356,20.0]
[1672843495759,146.42863711,13.376,13.356,43.5293]
[1672843496087,20.0,13.375,13.356,43.5293]
[1672843496300,56.13,13.374,13.356,43.5293]
[1672843496508,76.55213711,13.374,13.356,43.5293]
[1672843497239,76.55213711,13.374,13.356,23.5293]
[1672843497447,40.42213711,13.373,13.353,117.3595]
[1672843497651,56.14,13.372,13.353,117.3595]
[1672843497979,20.0,13.371,13.353,117.3595]
[1672843498305,56.15,13.37,13.353,117.3595]
[1672843498492,76.57213711,13.37,13.353,117.3595]
[1672843498820,20.0,13.369,13.353,117.3595]
[1672843499038,56.15,13.368,13.353,117.3595]
[1672843499239,20.0,13.367,13.353,117.3595]
[1672843499998,20.0,13.369,13.353,117.3595]
[1672843500209,56.15,13.368,13.353,117.3595]
[1672843500517,20.0,13.367,13.353,117.3595]
[1672843501128,20.0,13.368,13.353,117.3595]
[1672843501783,112.1844,13.37,13.353,139.1406836]
[1672843501985,23.2332,13.371,13.354,51.07049613]
[1672843502191,23.2332,13.371,13.355,20.0]
[1672843502406,22.5752,13.376,13.355,41.7811836]
[1672843502724,20.0,13.375,13.356,72.85167973]
[1672843502917,20.0,13.375,13.357,20.0]
[1672843503124,22.5752,13.376,13.357,41.7811836]
[1672843503869,42.99733711,13.376,13.357,20.0]
[1672843504086,42.99733711,13.376,13.356,20.0]
[1672843504304,42.99733711,13.376,13.357,21.7811836]
[1672843504509,42.99733711,13.376,13.358,20.0]
[1672843505134,42.99733711,13.376,13.356,44.2435]
[1672843505341,76.12,13.375,13.356,44.2435]
[1672843505878,19.8522159,13.374,13.356,44.2435]
[1672843506403,76.12,13.375,13.356,44.2435]
[1672843506622,19.8522159,13.374,13.356,44.2435]
[1672843507023,76.12,13.375,13.356,44.2435]
[1672843507335,20.0,13.375,13.356,44.2435]
[1672843508596,39.8522159,13.375,13.356,44.2435]
[1672843509227,76.12,13.375,13.356,44.2435]
[1672843511545,20.0,13.375,13.356,66.0246836]
[1672843517007,168.3084,13.384,13.356,117.09517973]
[1672843517229,112.2184,13.384,13.356,117.09517973]
[1672843517423,56.09,13.383,13.356,66.0246836]
[1672843517958,56.09,13.383,13.356,44.2435]
[1672843518158,109.61421756,13.383,13.356,44.2435]
[1672843519951,129.45285663,13.383,13.357,21.7811836]
[1672843520277,129.45285663,13.383,13.358,20.0]
[1672843520466,129.45285663,13.383,13.359,24.8508]
[1672843520679,129.45285663,13.383,13.36,20.0]
[1672843520885,129.45285663,13.383,13.361,133.2376]
[1672843521103,129.45285663,13.383,13.362,20.0]
[1672843521313,56.09,13.383,13.363,24.8508]
[1672843521524,56.09,13.383,13.364,20.0]
[1672843521855,112.2184,13.384,13.365,21.7811836]